[Event "Early-Titled-Tuesday-Blitz-October-10-2023"]
[Site "Chess.com"]
[Date "2023.10.10"]
[Round "7"]
[White "Aswathchess"]
[Black "Mr_ruthless"]
[Result "1/2-1/2"]
[WhiteElo "2621"]
[BlackElo "2471"]
[TimeControl "180+1"]
[EndTime "9:16:30 PDT"]
[Termination "Game drawn by repetition"]

1. d4 {[%clk 0:03:00.9]} 1... d5 {[%clk 0:02:58.7]} 2. c4 {[%clk 0:02:56.1]}
2... c6 {[%clk 0:02:59.1]} 3. Nf3 {[%clk 0:02:55.3]} 3... Nf6 {[%clk 0:02:59.2]}
4. g3 {[%clk 0:02:55]} 4... g6 {[%clk 0:02:56.8]} 5. Bg2 {[%clk 0:02:55.2]} 5...
Bg7 {[%clk 0:02:55.8]} 6. O-O {[%clk 0:02:55.8]} 6... O-O {[%clk 0:02:55.4]} 7.
cxd5 {[%clk 0:02:56]} 7... cxd5 {[%clk 0:02:55.4]} 8. Nc3 {[%clk 0:02:56.6]}
8... Ne4 {[%clk 0:02:56]} 9. Nxe4 {[%clk 0:02:54.7]} 9... dxe4 {[%clk
0:02:56.9]} 10. Nd2 {[%clk 0:02:54.6]} 10... Qxd4 {[%clk 0:02:52.3]} 11. Nxe4
{[%clk 0:02:53.4]} 11... Nc6 {[%clk 0:02:51.5]} 12. Qb3 {[%clk 0:02:23]} 12...
Qb6 {[%clk 0:02:39.7]} 13. Qxb6 {[%clk 0:02:16.4]} 13... axb6 {[%clk 0:02:39.6]}
14. Nc3 {[%clk 0:02:16.6]} 14... Be6 {[%clk 0:02:19.7]} 15. Nd5 {[%clk 0:02:16]}
15... Rfd8 {[%clk 0:02:07.5]} 16. Nc7 {[%clk 0:02:11.9]} 16... Rxa2 {[%clk
0:02:05]} 17. Nxe6 {[%clk 0:01:58.2]} 17... Rxa1 {[%clk 0:02:04]} 18. Nxd8
{[%clk 0:01:57.8]} 18... Nxd8 {[%clk 0:02:04.5]} 19. b3 {[%clk 0:01:49.2]} 19...
Nc6 {[%clk 0:02:03.2]} 20. Be3 {[%clk 0:01:47]} 20... Rxf1+ {[%clk 0:01:57.7]}
21. Kxf1 {[%clk 0:01:47.9]} 21... b5 {[%clk 0:01:39.4]} 22. Bc5 {[%clk
0:01:39.2]} 22... e6 {[%clk 0:01:38]} 23. e3 {[%clk 0:01:37.4]} 23... Bf8 {[%clk
0:01:33.9]} 24. Bb6 {[%clk 0:01:36.9]} 24... Bd6 {[%clk 0:01:26.9]} 25. Ke2
{[%clk 0:01:34.1]} 25... Kf8 {[%clk 0:01:27.5]} 26. f4 {[%clk 0:01:34.1]} 26...
Ke7 {[%clk 0:01:25.8]} 27. Kd2 {[%clk 0:01:30.7]} 27... Bb4+ {[%clk 0:01:24.1]}
28. Kc2 {[%clk 0:01:30]} 28... Kd7 {[%clk 0:01:24.4]} 29. Bf1 {[%clk 0:01:29.5]}
29... Kd6 {[%clk 0:01:19.4]} 30. Bxb5 {[%clk 0:01:28.8]} 30... Bc5 {[%clk
0:01:20]} 31. Bxc5+ {[%clk 0:01:21.6]} 31... Kxc5 {[%clk 0:01:20.9]} 32. Be2
{[%clk 0:01:14.5]} 32... f6 {[%clk 0:01:17.3]} 33. Kc3 {[%clk 0:01:14]} 33... h6
{[%clk 0:01:15.9]} 34. h4 {[%clk 0:01:13.1]} 34... g5 {[%clk 0:01:12.8]} 35. Bf3
{[%clk 0:01:13]} 35... e5 {[%clk 0:00:45.3]} 36. Bxc6 {[%clk 0:00:47.9]} 36...
Kxc6 {[%clk 0:00:36.8]} 37. Kd3 {[%clk 0:00:15.3]} 37... Kd5 {[%clk 0:00:37.2]}
38. e4+ {[%clk 0:00:13.9]} 38... Kc5 {[%clk 0:00:37.8]} 39. fxe5 {[%clk
0:00:12.3]} 39... fxe5 {[%clk 0:00:35.6]} 40. hxg5 {[%clk 0:00:11.8]} 40... hxg5
{[%clk 0:00:35.4]} 41. Kc3 {[%clk 0:00:11.5]} 41... g4 {[%clk 0:00:24.4]} 42.
b4+ {[%clk 0:00:11.4]} 42... Kb5 {[%clk 0:00:18.9]} 43. Kb3 {[%clk 0:00:11.3]}
43... b6 {[%clk 0:00:15.6]} 44. Kc3 {[%clk 0:00:11.3]} 44... Kc6 {[%clk
0:00:05.2]} 45. Kc2 {[%clk 0:00:10.9]} 45... Kb5 {[%clk 0:00:04.1]} 46. Kb3
{[%clk 0:00:11]} 46... Kc6 {[%clk 0:00:04.2]} 47. Ka4 {[%clk 0:00:11.3]} 47...
Kc7 {[%clk 0:00:03.4]} 48. Kb5 {[%clk 0:00:11.3]} 48... Kb7 {[%clk 0:00:04]} 49.
Kc4 {[%clk 0:00:09.7]} 49... Kc6 {[%clk 0:00:04.5]} 50. Kc3 {[%clk 0:00:09.7]}
50... b5 {[%clk 0:00:04.3]} 51. Kd3 {[%clk 0:00:09.4]} 51... Kd6 {[%clk
0:00:04.9]} 52. Kd2 {[%clk 0:00:09.4]} 52... Ke6 {[%clk 0:00:05.6]} 53. Ke3
{[%clk 0:00:08.9]} 53... Kd6 {[%clk 0:00:06.4]} 54. Kd2 {[%clk 0:00:09.8]} 54...
Ke6 {[%clk 0:00:07.3]} 55. Kd3 {[%clk 0:00:10.7]} 55... Kd6 {[%clk 0:00:08.2]}
56. Ke3 {[%clk 0:00:11.6]} 56... Ke6 {[%clk 0:00:09.1]} 57. Kd2 {[%clk
0:00:12.5]} 57... Kd6 {[%clk 0:00:10]} 58. Kd3 {[%clk 0:00:13.4]} 58... Ke6
{[%clk 0:00:10.9]} 59. Ke3 {[%clk 0:00:14.3]} 59... Kd6 {[%clk 0:00:11.8]} 60.
Kd2 {[%clk 0:00:15.2]} 1/2-1/2

[Event "Early-Titled-Tuesday-Blitz-October-10-2023"]
[Site "Chess.com"]
[Date "2023.10.10"]
[Round "7"]
[White "LeninGuerra"]
[Black "c63_amg"]
[Result "1/2-1/2"]
[WhiteElo "2597"]
[BlackElo "2805"]
[TimeControl "180+1"]
[EndTime "9:16:34 PDT"]
[Termination "Game drawn - insufficient material"]

1. e4 {[%clk 0:03:00.9]} 1... c5 {[%clk 0:02:56.4]} 2. Nf3 {[%clk 0:02:56.3]}
2... e6 {[%clk 0:02:56.8]} 3. b4 {[%clk 0:02:55.3]} 3... cxb4 {[%clk 0:02:51.3]}
4. a3 {[%clk 0:02:55.7]} 4... d5 {[%clk 0:02:46.4]} 5. exd5 {[%clk 0:02:52.9]}
5... Qxd5 {[%clk 0:02:47.1]} 6. axb4 {[%clk 0:02:51.9]} 6... Bxb4 {[%clk
0:02:47.8]} 7. Bb2 {[%clk 0:02:39.9]} 7... Nf6 {[%clk 0:02:47.6]} 8. Bd3 {[%clk
0:02:37.3]} 8... Nbd7 {[%clk 0:02:31.5]} 9. Ra4 {[%clk 0:02:31.8]} 9... a5
{[%clk 0:02:24.6]} 10. O-O {[%clk 0:02:22]} 10... O-O {[%clk 0:02:22.6]} 11. Nc3
{[%clk 0:02:21.5]} 11... Qh5 {[%clk 0:02:20.6]} 12. Qa1 {[%clk 0:02:14.1]} 12...
Rb8 {[%clk 0:01:47.7]} 13. Ne2 {[%clk 0:01:33.6]} 13... Qh6 {[%clk 0:01:07.8]}
14. c3 {[%clk 0:01:26.5]} 14... Nc5 {[%clk 0:00:55]} 15. cxb4 {[%clk 0:01:26.6]}
15... Nxd3 {[%clk 0:00:55.7]} 16. Bxf6 {[%clk 0:01:25.1]} 16... Qxf6 {[%clk
0:00:50.9]} 17. bxa5 {[%clk 0:01:15.1]} 17... Qxa1 {[%clk 0:00:40.7]} 18. Rfxa1
{[%clk 0:01:16]} 18... Bd7 {[%clk 0:00:40.8]} 19. Rd4 {[%clk 0:01:15.4]} 19...
Bb5 {[%clk 0:00:37.6]} 20. Nc3 {[%clk 0:01:00.7]} 20... Ba6 {[%clk 0:00:37.8]}
21. Rb1 {[%clk 0:00:57.7]} 21... Rfd8 {[%clk 0:00:37.1]} 22. Rb6 {[%clk
0:00:57.5]} 22... Rxd4 {[%clk 0:00:32.6]} 23. Nxd4 {[%clk 0:00:58.4]} 23... Rc8
{[%clk 0:00:32.9]} 24. h3 {[%clk 0:00:43.4]} 24... Kf8 {[%clk 0:00:33.1]} 25.
Ndb5 {[%clk 0:00:37.9]} 25... Rc5 {[%clk 0:00:29.7]} 26. Nd6 {[%clk 0:00:34.8]}
26... Rxa5 {[%clk 0:00:28.5]} 27. Nxb7 {[%clk 0:00:30.3]} 27... Ra1+ {[%clk
0:00:29]} 28. Kh2 {[%clk 0:00:29.6]} 28... Bxb7 {[%clk 0:00:28.8]} 29. Rxb7
{[%clk 0:00:29.7]} 29... Nxf2 {[%clk 0:00:29.7]} 30. Kg3 {[%clk 0:00:21.1]}
30... Nd3 {[%clk 0:00:26.4]} 31. Ne4 {[%clk 0:00:21.6]} 31... Ne5 {[%clk
0:00:20.6]} 32. d4 {[%clk 0:00:17.2]} 32... Ra3+ {[%clk 0:00:19.7]} 33. Kh2
{[%clk 0:00:17.3]} 33... Nc6 {[%clk 0:00:12.8]} 34. Ng5 {[%clk 0:00:13.8]} 34...
h6 {[%clk 0:00:10.6]} 35. Rxf7+ {[%clk 0:00:08.6]} 35... Kg8 {[%clk 0:00:10.5]}
36. Rc7 {[%clk 0:00:08.6]} 36... hxg5 {[%clk 0:00:07.8]} 37. Rxc6 {[%clk
0:00:09.1]} 37... Kf7 {[%clk 0:00:08.7]} 38. Rc7+ {[%clk 0:00:07.2]} 38... Kf6
{[%clk 0:00:09.3]} 39. Rc6 {[%clk 0:00:07.8]} 39... Rd3 {[%clk 0:00:09.7]} 40.
Rd6 {[%clk 0:00:07.7]} 40... Kf5 {[%clk 0:00:09.4]} 41. Rd7 {[%clk 0:00:07.9]}
41... g6 {[%clk 0:00:09.2]} 42. Rf7+ {[%clk 0:00:08.5]} 42... Ke4 {[%clk
0:00:09.6]} 43. Rf6 {[%clk 0:00:09.1]} 43... Kd5 {[%clk 0:00:09.9]} 44. Rxg6
{[%clk 0:00:09.7]} 44... Rxd4 {[%clk 0:00:09.9]} 45. Rxg5+ {[%clk 0:00:10.4]}
45... e5 {[%clk 0:00:10.8]} 46. Rg8 {[%clk 0:00:10.5]} 46... Rf4 {[%clk
0:00:10.9]} 47. Kg3 {[%clk 0:00:10.7]} 47... Rf7 {[%clk 0:00:10.5]} 48. Re8
{[%clk 0:00:11]} 48... e4 {[%clk 0:00:10.7]} 49. h4 {[%clk 0:00:11.6]} 49... Kd4
{[%clk 0:00:11.2]} 50. Kh3 {[%clk 0:00:12]} 50... e3 {[%clk 0:00:11.2]} 51. h5
{[%clk 0:00:12.4]} 51... Kd3 {[%clk 0:00:11.1]} 52. Kh4 {[%clk 0:00:12.5]} 52...
e2 {[%clk 0:00:11.8]} 53. g4 {[%clk 0:00:12]} 53... Rf1 {[%clk 0:00:10.7]} 54.
Kg5 {[%clk 0:00:11.6]} 54... e1=Q {[%clk 0:00:10.1]} 55. Rxe1 {[%clk 0:00:10.6]}
55... Rxe1 {[%clk 0:00:11]} 56. h6 {[%clk 0:00:10.8]} 56... Rh1 {[%clk
0:00:09.1]} 57. Kg6 {[%clk 0:00:10.5]} 57... Ke4 {[%clk 0:00:09.6]} 58. g5
{[%clk 0:00:11]} 58... Kf4 {[%clk 0:00:10.1]} 59. Kf6 {[%clk 0:00:11.5]} 59...
Rh5 {[%clk 0:00:08.6]} 60. g6 {[%clk 0:00:09]} 60... Rxh6 {[%clk 0:00:08.4]} 61.
Kf7 {[%clk 0:00:09.7]} 61... Kf5 {[%clk 0:00:06.4]} 62. g7 {[%clk 0:00:10.3]}
62... Rf6+ {[%clk 0:00:06.8]} 63. Ke8 {[%clk 0:00:10.8]} 63... Rg6 {[%clk
0:00:06.2]} 64. Kf7 {[%clk 0:00:11.4]} 64... Rf6+ {[%clk 0:00:06.7]} 65. Ke8
{[%clk 0:00:11.8]} 65... Re6+ {[%clk 0:00:07.1]} 66. Kf7 {[%clk 0:00:11.9]}
66... Ra6 {[%clk 0:00:06.2]} 67. g8=Q {[%clk 0:00:10.9]} 67... Ra7+ {[%clk
0:00:06.8]} 68. Kf8 {[%clk 0:00:11.5]} 68... Ra8+ {[%clk 0:00:07.4]} 69. Kg7
{[%clk 0:00:12.2]} 69... Rxg8+ {[%clk 0:00:05]} 70. Kxg8 {[%clk 0:00:13.1]}
1/2-1/2

[Event "Early-Titled-Tuesday-Blitz-October-10-2023"]
[Site "Chess.com"]
[Date "2023.10.10"]
[Round "7"]
[White "VOneChess"]
[Black "kritipatel"]
[Result "1-0"]
[WhiteElo "2246"]
[BlackElo "2114"]
[TimeControl "180+1"]
[EndTime "9:16:35 PDT"]
[Termination "VOneChess won by checkmate"]

1. e4 {[%clk 0:03:00.9]} 1... e5 {[%clk 0:02:59.1]} 2. Nf3 {[%clk 0:03:00.9]}
2... Nc6 {[%clk 0:02:59.3]} 3. Bb5 {[%clk 0:03:01.6]} 3... a6 {[%clk 0:02:58.8]}
4. Ba4 {[%clk 0:03:02.2]} 4... Nf6 {[%clk 0:02:59.3]} 5. O-O {[%clk 0:03:02.6]}
5... b5 {[%clk 0:03:00]} 6. Bb3 {[%clk 0:03:02.7]} 6... Bc5 {[%clk 0:03:00.4]}
7. c3 {[%clk 0:03:01.5]} 7... d6 {[%clk 0:03:00]} 8. d4 {[%clk 0:03:01.1]} 8...
Bb6 {[%clk 0:03:00.1]} 9. dxe5 {[%clk 0:03:00.8]} 9... Nxe5 {[%clk 0:02:57]} 10.
Nxe5 {[%clk 0:02:57]} 10... dxe5 {[%clk 0:02:57.6]} 11. Qxd8+ {[%clk 0:02:57.3]}
11... Kxd8 {[%clk 0:02:58.5]} 12. Bxf7 {[%clk 0:02:58.2]} 12... Rf8 {[%clk
0:02:51.7]} 13. Bd5 {[%clk 0:02:46]} 13... Nxd5 {[%clk 0:02:47.4]} 14. exd5
{[%clk 0:02:46.9]} 14... Bb7 {[%clk 0:02:44.9]} 15. Bg5+ {[%clk 0:02:46.9]}
15... Kd7 {[%clk 0:02:40]} 16. Na3 {[%clk 0:02:30.8]} 16... Bxd5 {[%clk
0:02:32.4]} 17. Rad1 {[%clk 0:02:31.1]} 17... Ke6 {[%clk 0:02:24.3]} 18. Nc2
{[%clk 0:02:26.3]} 18... Rf5 {[%clk 0:02:18.4]} 19. Bh4 {[%clk 0:02:25]} 19...
Raf8 {[%clk 0:02:06.3]} 20. Bg3 {[%clk 0:01:47.7]} 20... Bc4 {[%clk 0:01:49.9]}
21. Rfe1 {[%clk 0:01:47.4]} 21... Bxf2+ {[%clk 0:01:43]} 22. Bxf2 {[%clk
0:01:47.5]} 22... Rxf2 {[%clk 0:01:42.6]} 23. Nd4+ {[%clk 0:01:47.8]} 23... Ke7
{[%clk 0:00:41.3]} 24. Rxe5+ {[%clk 0:01:42.6]} 24... Kf6 {[%clk 0:00:40.8]} 25.
Re4 {[%clk 0:01:15.2]} 25... Rxb2 {[%clk 0:00:35.1]} 26. Rf4+ {[%clk 0:01:13.6]}
26... Ke7 {[%clk 0:00:34.5]} 27. Re1+ {[%clk 0:01:13.8]} 27... Kd6 {[%clk
0:00:24.3]} 28. Rxf8 {[%clk 0:01:12.5]} 28... Rxa2 {[%clk 0:00:21.1]} 29. Rd8+
{[%clk 0:01:07.9]} 29... Kc5 {[%clk 0:00:20.3]} 30. Re5+ {[%clk 0:01:08.2]}
30... Kb6 {[%clk 0:00:20.3]} 31. Rb8+ {[%clk 0:01:07.6]} 31... Ka5 {[%clk
0:00:20.3]} 32. Rb7 {[%clk 0:00:28.1]} 32... c5 {[%clk 0:00:14.7]} 33. Rxc5
{[%clk 0:00:26.6]} 33... Ra1+ {[%clk 0:00:14.5]} 34. Kf2 {[%clk 0:00:26.7]}
34... Rf1+ {[%clk 0:00:15.1]} 35. Kg3 {[%clk 0:00:27.3]} 35... Rf6 {[%clk
0:00:14.6]} 36. Rc6 {[%clk 0:00:22.2]} 36... Rf1 {[%clk 0:00:12.5]} 37. Rcb6
{[%clk 0:00:18]} 37... Bd5 {[%clk 0:00:11.8]} 38. Rd6 {[%clk 0:00:14.3]} 38...
Bxb7 {[%clk 0:00:11.3]} 39. Nb3+ {[%clk 0:00:14.1]} 39... Ka4 {[%clk 0:00:11.2]}
40. Nc5+ {[%clk 0:00:14.5]} 40... Ka3 {[%clk 0:00:11.6]} 41. Nxb7 {[%clk
0:00:13.4]} 41... Rc1 {[%clk 0:00:12.3]} 42. Rxa6+ {[%clk 0:00:12.8]} 42... Kb3
{[%clk 0:00:12.7]} 43. Na5+ {[%clk 0:00:06]} 43... Kxc3 {[%clk 0:00:11.4]} 44.
Rc6+ {[%clk 0:00:05.6]} 44... Kd2 {[%clk 0:00:12.1]} 45. Nb3+ {[%clk 0:00:05]}
45... Kd3 {[%clk 0:00:10.3]} 46. Rxc1 {[%clk 0:00:05.4]} 46... b4 {[%clk
0:00:10.1]} 47. Rc7 {[%clk 0:00:05.9]} 47... h5 {[%clk 0:00:10.9]} 48. Rxg7
{[%clk 0:00:06]} 48... Kc2 {[%clk 0:00:11.8]} 49. Nc5 {[%clk 0:00:06.4]} 49...
b3 {[%clk 0:00:11.6]} 50. Nxb3 {[%clk 0:00:06.4]} 50... Kxb3 {[%clk 0:00:12.5]}
51. Rh7 {[%clk 0:00:06.9]} 51... Kb2 {[%clk 0:00:13.4]} 52. Kh4 {[%clk
0:00:07.5]} 52... Kc3 {[%clk 0:00:14.3]} 53. Kxh5 {[%clk 0:00:08.2]} 53... Kb2
{[%clk 0:00:15.2]} 54. Rc7 {[%clk 0:00:07.8]} 54... Kb3 {[%clk 0:00:16.1]} 55.
g4 {[%clk 0:00:08.1]} 55... Kb2 {[%clk 0:00:16.6]} 56. g5 {[%clk 0:00:09]} 56...
Kb1 {[%clk 0:00:17.5]} 57. g6 {[%clk 0:00:09.8]} 57... Kb2 {[%clk 0:00:18.4]}
58. g7 {[%clk 0:00:10.5]} 58... Ka2 {[%clk 0:00:19.3]} 59. g8=Q+ {[%clk
0:00:10.7]} 59... Ka3 {[%clk 0:00:20]} 60. Qc8 {[%clk 0:00:10.8]} 60... Kb2
{[%clk 0:00:20.3]} 61. Rb7+ {[%clk 0:00:11.7]} 61... Ka1 {[%clk 0:00:21.2]} 62.
Qa8# {[%clk 0:00:12.6]} 1-0

[Event "Early-Titled-Tuesday-Blitz-October-10-2023"]
[Site "Chess.com"]
[Date "2023.10.10"]
[Round "7"]
[White "motivated_bishop"]
[Black "lamomiajunior"]
[Result "1-0"]
[WhiteElo "2482"]
[BlackElo "2687"]
[TimeControl "180+1"]
[EndTime "9:16:37 PDT"]
[Termination "motivated_bishop won by resignation"]

1. e4 {[%clk 0:02:53.3]} 1... c6 {[%clk 0:03:00.1]} 2. d4 {[%clk 0:02:53.1]}
2... d5 {[%clk 0:03:01]} 3. Nc3 {[%clk 0:02:53.6]} 3... dxe4 {[%clk 0:03:01.7]}
4. Nxe4 {[%clk 0:02:54.5]} 4... Nf6 {[%clk 0:03:02.1]} 5. Nxf6+ {[%clk
0:02:54.4]} 5... exf6 {[%clk 0:03:03]} 6. c3 {[%clk 0:02:54.2]} 6... Bd6 {[%clk
0:03:03.5]} 7. Bd3 {[%clk 0:02:54.9]} 7... O-O {[%clk 0:03:04.3]} 8. Qc2 {[%clk
0:02:55.3]} 8... Re8+ {[%clk 0:03:05]} 9. Ne2 {[%clk 0:02:55.7]} 9... h5 {[%clk
0:03:05.8]} 10. Be3 {[%clk 0:02:55]} 10... Nd7 {[%clk 0:03:05.7]} 11. O-O-O
{[%clk 0:02:55.3]} 11... Nf8 {[%clk 0:03:06.3]} 12. Kb1 {[%clk 0:02:54.4]} 12...
Be6 {[%clk 0:03:05.7]} 13. c4 {[%clk 0:02:54.8]} 13... Rc8 {[%clk 0:03:05.2]}
14. Nc3 {[%clk 0:02:53.3]} 14... Bb4 {[%clk 0:03:05.6]} 15. Ne4 {[%clk
0:02:49.6]} 15... Ng6 {[%clk 0:03:03.6]} 16. c5 {[%clk 0:02:38.2]} 16... Qd5
{[%clk 0:02:52]} 17. b3 {[%clk 0:02:37.8]} 17... Rcd8 {[%clk 0:02:35.5]} 18. Nd6
{[%clk 0:02:09.9]} 18... Qxg2 {[%clk 0:02:21.3]} 19. Rhg1 {[%clk 0:01:59]} 19...
Qh3 {[%clk 0:02:19.1]} 20. Bxg6 {[%clk 0:01:00.9]} 20... fxg6 {[%clk 0:01:21.4]}
21. Qxg6 {[%clk 0:00:59.2]} 21... Re7 {[%clk 0:01:21.5]} 22. Qxf6 {[%clk
0:00:56.7]} 22... Rdd7 {[%clk 0:01:20.6]} 23. Rg3 {[%clk 0:00:38.3]} 23... Qxg3
{[%clk 0:01:19.6]} 24. Qxe6+ {[%clk 0:00:24.1]} 24... Rxe6 {[%clk 0:01:20.5]}
25. hxg3 {[%clk 0:00:24.3]} 25... Ba5 {[%clk 0:01:06.8]} 26. Kc2 {[%clk
0:00:21.5]} 26... Bd8 {[%clk 0:01:06.7]} 27. Rh1 {[%clk 0:00:20.9]} 27... g6
{[%clk 0:01:05.1]} 28. Kd3 {[%clk 0:00:21.2]} 28... Be7 {[%clk 0:01:04.2]} 29.
Ne4 {[%clk 0:00:21.5]} 29... Rd5 {[%clk 0:01:03]} 30. b4 {[%clk 0:00:20.5]}
30... Kf7 {[%clk 0:01:01.4]} 31. f3 {[%clk 0:00:20.6]} 31... Rf5 {[%clk
0:00:59.9]} 32. Rf1 {[%clk 0:00:16.2]} 32... g5 {[%clk 0:00:57.4]} 33. a4 {[%clk
0:00:13.6]} 33... Kg6 {[%clk 0:00:57.2]} 34. Ke2 {[%clk 0:00:12.5]} 34... g4
{[%clk 0:00:56]} 35. Nd2 {[%clk 0:00:04.7]} 35... Bg5 {[%clk 0:00:52.7]} 36. f4
{[%clk 0:00:03.3]} 36... Bf6 {[%clk 0:00:53.2]} 37. Kd3 {[%clk 0:00:03.6]} 37...
h4 {[%clk 0:00:51.5]} 38. gxh4 {[%clk 0:00:02.8]} 38... Bxh4 {[%clk 0:00:52.4]}
39. Rg1 {[%clk 0:00:02.8]} 39... Kh5 {[%clk 0:00:53.2]} 40. Nc4 {[%clk
0:00:02.7]} 40... g3 {[%clk 0:00:46.5]} 41. Ne5 {[%clk 0:00:02.9]} 41... Rf8
{[%clk 0:00:44.5]} 42. Ke4 {[%clk 0:00:03.4]} 42... Ree8 {[%clk 0:00:44.4]} 43.
Rh1 {[%clk 0:00:03.8]} 43... Rg8 {[%clk 0:00:37.2]} 44. f5 {[%clk 0:00:04]}
44... g2 {[%clk 0:00:34.2]} 45. Rg1 {[%clk 0:00:04.4]} 45... Bf6 {[%clk
0:00:33.1]} 46. Bf4 {[%clk 0:00:02.5]} 46... Kh4 {[%clk 0:00:32.5]} 47. Kf3
{[%clk 0:00:02.5]} 47... Kh3 {[%clk 0:00:31]} 48. Ng6 {[%clk 0:00:02.7]} 48...
Rxg6 {[%clk 0:00:09.8]} 49. fxg6 {[%clk 0:00:02.5]} 49... Kh4 {[%clk 0:00:02.9]}
50. Rxg2 {[%clk 0:00:02.7]} 50... Kh5 {[%clk 0:00:03.7]} 51. g7 {[%clk
0:00:02.2]} 51... Rg8 {[%clk 0:00:04.2]} 52. Be5 {[%clk 0:00:02]} 52... Bh4
{[%clk 0:00:04]} 53. Ke4 {[%clk 0:00:01.5]} 53... Be7 {[%clk 0:00:04.4]} 54. Kf5
{[%clk 0:00:01.8]} 54... Bh4 {[%clk 0:00:05.3]} 55. Ke6 {[%clk 0:00:02]} 55...
Re8+ {[%clk 0:00:04.5]} 56. Kf7 {[%clk 0:00:01.7]} 56... Re7+ {[%clk 0:00:04.9]}
57. Kf8 {[%clk 0:00:01.9]} 57... Rd7 {[%clk 0:00:05.2]} 58. g8=Q {[%clk
0:00:02.8]} 58... Rd8+ {[%clk 0:00:05.8]} 59. Kf7 {[%clk 0:00:02.8]} 59... Rd7+
{[%clk 0:00:06.3]} 60. Ke6 {[%clk 0:00:03.1]} 60... Re7+ {[%clk 0:00:07.1]} 61.
Kf5 {[%clk 0:00:04]} 1-0

[Event "Early-Titled-Tuesday-Blitz-October-10-2023"]
[Site "Chess.com"]
[Date "2023.10.10"]
[Round "7"]
[White "chessfatbear"]
[Black "ExchangeAB"]
[Result "1-0"]
[WhiteElo "2805"]
[BlackElo "2499"]
[TimeControl "180+1"]
[EndTime "9:16:43 PDT"]
[Termination "chessfatbear won by resignation"]

1. e4 {[%clk 0:02:56.5]} 1... c6 {[%clk 0:03:00.1]} 2. Nf3 {[%clk 0:02:56.1]}
2... d5 {[%clk 0:03:01]} 3. Nc3 {[%clk 0:02:57]} 3... Bg4 {[%clk 0:03:01.1]} 4.
h3 {[%clk 0:02:56.8]} 4... Bxf3 {[%clk 0:03:01.1]} 5. Qxf3 {[%clk 0:02:57.7]}
5... e6 {[%clk 0:03:01.4]} 6. d4 {[%clk 0:02:56.8]} 6... Nd7 {[%clk 0:02:57.1]}
7. Bd3 {[%clk 0:02:56.6]} 7... dxe4 {[%clk 0:02:56.3]} 8. Nxe4 {[%clk
0:02:56.2]} 8... Ngf6 {[%clk 0:02:56.9]} 9. O-O {[%clk 0:02:56.1]} 9... Nxe4
{[%clk 0:02:56.4]} 10. Qxe4 {[%clk 0:02:56.2]} 10... Nf6 {[%clk 0:02:56.8]} 11.
Qe3 {[%clk 0:02:56.5]} 11... Be7 {[%clk 0:02:51.5]} 12. c3 {[%clk 0:02:56.4]}
12... O-O {[%clk 0:02:51.7]} 13. Re1 {[%clk 0:02:56.7]} 13... Rc8 {[%clk
0:02:49]} 14. Qg3 {[%clk 0:02:53.1]} 14... Bd6 {[%clk 0:02:40]} 15. Qh4 {[%clk
0:02:51.3]} 15... Be7 {[%clk 0:02:39.4]} 16. Bg5 {[%clk 0:02:50.3]} 16... g6
{[%clk 0:02:26.4]} 17. Qh6 {[%clk 0:02:33.6]} 17... Nd5 {[%clk 0:02:18.9]} 18.
Bd2 {[%clk 0:02:30.9]} 18... Bf6 {[%clk 0:02:16.3]} 19. Re4 {[%clk 0:02:26.4]}
19... Bg7 {[%clk 0:02:15]} 20. Qg5 {[%clk 0:02:21.9]} 20... Qxg5 {[%clk
0:02:14.4]} 21. Bxg5 {[%clk 0:02:22.8]} 21... c5 {[%clk 0:02:10.8]} 22. dxc5
{[%clk 0:02:22.4]} 22... Rxc5 {[%clk 0:01:59.8]} 23. Rc4 {[%clk 0:02:18.7]}
23... Rfc8 {[%clk 0:01:53.4]} 24. Rxc5 {[%clk 0:02:17.3]} 24... Rxc5 {[%clk
0:01:54.3]} 25. Bd2 {[%clk 0:02:17.3]} 25... Rc8 {[%clk 0:01:45.8]} 26. Kf1
{[%clk 0:02:16.1]} 26... Be5 {[%clk 0:01:42.5]} 27. g3 {[%clk 0:02:14.1]} 27...
Bd6 {[%clk 0:01:32]} 28. Ke2 {[%clk 0:02:11.6]} 28... f5 {[%clk 0:01:31.2]} 29.
c4 {[%clk 0:01:58.1]} 29... Nb4 {[%clk 0:01:28.7]} 30. Bxb4 {[%clk 0:01:52.9]}
30... Bxb4 {[%clk 0:01:29.6]} 31. a3 {[%clk 0:01:53.5]} 31... Be7 {[%clk
0:01:27.5]} 32. b4 {[%clk 0:01:54.4]} 32... e5 {[%clk 0:01:26.7]} 33. c5 {[%clk
0:01:54.3]} 33... e4 {[%clk 0:01:23.9]} 34. Bc4+ {[%clk 0:01:53.8]} 34... Kf8
{[%clk 0:01:24]} 35. Rd1 {[%clk 0:01:49.4]} 35... Rd8 {[%clk 0:01:24.2]} 36. Bd5
{[%clk 0:01:44.5]} 36... Rd7 {[%clk 0:01:13.3]} 37. g4 {[%clk 0:01:39.1]} 37...
fxg4 {[%clk 0:00:57.5]} 38. hxg4 {[%clk 0:01:40]} 38... Bg5 {[%clk 0:00:27.3]}
39. a4 {[%clk 0:01:24.3]} 39... Ke7 {[%clk 0:00:26.3]} 40. a5 {[%clk 0:01:24.1]}
40... Bf4 {[%clk 0:00:23]} 41. Bxe4 {[%clk 0:01:10.1]} 41... Rxd1 {[%clk
0:00:22.7]} 42. Kxd1 {[%clk 0:01:11]} 42... b6 {[%clk 0:00:22]} 43. cxb6 {[%clk
0:01:04.8]} 43... axb6 {[%clk 0:00:22.9]} 44. a6 {[%clk 0:01:03.5]} 44... Bb8
{[%clk 0:00:23.3]} 45. g5 {[%clk 0:00:51.5]} 45... b5 {[%clk 0:00:18]} 46. Ke2
{[%clk 0:00:31.7]} 46... Kd6 {[%clk 0:00:17.7]} 47. f4 {[%clk 0:00:31.5]} 47...
Kc7 {[%clk 0:00:17.6]} 48. Bd5 {[%clk 0:00:23.4]} 48... Kb6 {[%clk 0:00:17.8]}
49. Kf3 {[%clk 0:00:21.7]} 49... Bd6 {[%clk 0:00:14.8]} 50. Bg8 {[%clk
0:00:21.5]} 50... Bxb4 {[%clk 0:00:11.1]} 51. Bxh7 {[%clk 0:00:22]} 51... Kxa6
{[%clk 0:00:10.1]} 52. Bxg6 {[%clk 0:00:22.3]} 52... Kb6 {[%clk 0:00:10.7]} 53.
f5 {[%clk 0:00:19.5]} 53... Kc7 {[%clk 0:00:11]} 54. f6 {[%clk 0:00:18.8]} 54...
Kd8 {[%clk 0:00:10.8]} 55. Kg4 {[%clk 0:00:18.4]} 55... Bc3 {[%clk 0:00:09.4]}
56. Bd3 {[%clk 0:00:11.1]} 56... Ke8 {[%clk 0:00:08.8]} 57. Bxb5+ {[%clk
0:00:07.9]} 57... Kf7 {[%clk 0:00:05.9]} 58. Kf5 {[%clk 0:00:07.8]} 58... Ba1
{[%clk 0:00:05.5]} 59. g6+ {[%clk 0:00:07.1]} 59... Kg8 {[%clk 0:00:06]} 60.
Bc4+ {[%clk 0:00:06.7]} 60... Kh8 {[%clk 0:00:05.2]} 61. g7+ {[%clk 0:00:06.6]}
1-0